fUST/lending_fUST_20250221
["ID","MTS","AMOUNT","RATE_DAILY","PERIOD"]
[353898353,1740118253100,-4391.14,0.00014602,2]
[353898354,1740118253110,-151.0,0.00014602,2]
[353898355,1740118253120,-500.0,0.00014602,2]
[353898356,1740118253130,-521.58,0.00014602,2]
[353898357,1740118253140,-500.0,0.00014602,2]
[353898358,1740118253150,-160.804693,0.00014656,2]
[353898359,1740118253159,-500.44648934,0.00014673,2]
[353898360,1740118253169,-522.26455558,0.00014673,2]
[353898361,1740118253179,-162.12723588,0.00014673,2]
[353898362,1740118253189,-500.0,0.00014673,2]
[353898363,1740118253199,-268.85327059,0.00014684,2]
[353898364,1740118253208,-500.0,0.00014684,2]
[353898365,1740118253218,-500.0,0.00014684,2]
[353898366,1740118253228,-500.0,0.00014684,2]
[353898367,1740118253238,-560.81,0.00014684,2]
[353898368,1740118253248,-500.0,0.00014684,2]
[353898369,1740118253257,-500.0,0.00014684,2]
[353898370,1740118253267,-659.11,0.00014684,2]
[353898371,1740118253277,-500.0,0.00014684,2]
[353898372,1740118253287,-500.0,0.00014684,2]
[353898373,1740118253296,-500.0,0.00014684,2]
[353898374,1740118253306,-788.64,0.00014684,2]
[353898375,1740118253316,-500.0,0.00014684,2]
[353898376,1740118253326,-500.0,0.00014684,2]
[353898377,1740118253335,-767.86,0.00014684,2]
[353898378,1740118253345,-500.0,0.00014684,2]
[353898379,1740118253354,-577.33,0.00014684,2]
[353898380,1740118253364,-500.0,0.00014684,2]
[353898381,1740118253374,-500.0,0.00014684,2]
[353898382,1740118253384,-500.0,0.00014684,2]
[353898383,1740118253393,-422.71901577,0.00014684,2]
[353898384,1740118253403,-161.847331,0.00014684,2]
[353898385,1740118253413,-500.0,0.00014684,2]
[353898386,1740118253423,-5115.52,0.00014684,2]
[353898387,1740118253432,-583.16,0.00014684,2]
[353898388,1740118253442,-500.0,0.00014684,2]
[353898389,1740118253452,-1763.15,0.00014684,2]
[353898390,1740118253461,-12832.81,0.00014684,2]
[353898391,1740118253471,-2477.03,0.00014684,2]
[353898392,1740118253481,-571.96,0.00014684,2]
[353898393,1740118253490,-1632.63,0.00014684,2]
[353898394,1740118253500,-970.01,0.00014684,2]
[353898395,1740118253510,-1658.55,0.00014684,2]
[353898396,1740118253520,-500.0,0.00014684,2]
[353898397,1740118253529,-889.73,0.00014684,2]
[353898398,1740118253539,-500.0,0.00014684,2]
[353898399,1740118253548,-500.0,0.00014684,2]
[353898400,1740118253558,-508.37035668,0.00014684,2]
[353898401,1740118253568,-500.0,0.00014684,2]
[353898402,1740118253577,-1532.0,0.00014684,2]
[353898403,1740118253587,-687.09,0.00014684,2]
[353898404,1740118253597,-500.0,0.00014684,2]
[353898405,1740118253607,-780.59,0.00014684,2]
[353898406,1740118253616,-995.37,0.00014684,2]
[353898407,1740118253625,-2332.34,0.00014684,2]
[353898408,1740118253634,-500.0,0.00014684,2]
[353898409,1740118253644,-1414.88,0.00014684,2]
[353898410,1740118253652,-4367.26,0.00014684,2]
[353898411,1740118253662,-23100.61,0.00014684,2]
[353898412,1740118253671,-1658.09,0.00014684,2]
[353898413,1740118253681,-1266.88,0.00014684,2]
[353898414,1740118253691,-10121.5,0.00014684,2]
[353898415,1740118253700,-891.26,0.00014684,2]
[353898416,1740118253709,-2055.72,0.00014684,2]
[353898417,1740118253718,-2802.08,0.00014684,2]
[353898418,1740118253727,-630.32,0.00014684,2]
[353898419,1740118253737,-1334.14,0.00014684,2]
[353898420,1740118253745,-500.0,0.00014684,2]
[353898421,1740118253755,-623.31,0.00014684,2]
[353898422,1740118253764,-760.7,0.00014684,2]
[353898423,1740118253774,-900.55,0.00014684,2]
[353898424,1740118253783,-2021.19,0.00014684,2]
[353898425,1740118253792,-748.09,0.00014684,2]
[353898426,1740118253802,-500.0,0.00014684,2]
[353898427,1740118253811,-500.0,0.00014684,2]
[353898428,1740118253821,-1466.85,0.00014684,2]
[353898429,1740118253831,-500.0,0.00014684,2]
[353898430,1740118253841,-1171.71,0.00014684,2]
[353898431,1740118253850,-500.0,0.00014684,2]
[353898432,1740118253860,-500.0,0.00014684,2]
[353898433,1740118253870,-4391.14,0.00014684,2]
[353898434,1740118253880,-500.0,0.00014684,2]
[353898435,1740118253890,-521.58,0.00014684,2]
[353898436,1740118253899,-500.0,0.00014684,2]
[353898437,1740118253909,-151.0,0.000147,2]
[353898438,1740118253918,-1000.0,0.00014721,2]
[353898439,1740118253927,-501.3968598,0.00014721,2]
[353898440,1740118253937,-501.07938361,0.00014721,2]
[353898441,1740118253946,-1000.0,0.00014721,2]
[353898442,1740118253955,-500.8256556,0.00014721,2]
[353898443,1740118253965,-1000.96222818,0.00014721,2]
[353898444,1740118253974,-1000.0,0.00014721,2]
[353898445,1740118253984,-1010.21662981,0.00014721,2]
[353898446,1740118253995,-517.12891589,0.00014721,2]
[353898447,1740118254005,-279.99377584,0.00014721,2]
[353898448,1740118254014,-1000.0,0.00014721,2]
[353898449,1740118254023,-168.40801011,0.0001474,2]
[353898450,1740118254033,-307.0,0.0001474,2]
[353898451,1740118254042,-501.10460462,0.00014766,2]
[353898452,1740118254051,-500.6,0.00014767,2]
[353898453,1740118254063,-500.0,0.00014767,2]
[353898454,1740118254076,-500.0,0.00014767,2]
[353898455,1740118254086,-500.0,0.00014767,2]
[353898456,1740118254095,-560.81,0.00014767,2]
[353898457,1740118254105,-500.0,0.00014767,2]
[353898458,1740118254114,-500.0,0.00014767,2]
[353898459,1740118254124,-659.11,0.00014767,2]
[353898460,1740118254133,-500.0,0.00014767,2]
[353898461,1740118254142,-500.0,0.00014767,2]
[353898462,1740118254152,-500.0,0.00014767,2]
[353898463,1740118254161,-788.64,0.00014767,2]
[353898464,1740118254170,-500.0,0.00014767,2]
[353898465,1740118254180,-500.0,0.00014767,2]
[353898466,1740118254189,-767.86,0.00014767,2]
[353898467,1740118254198,-500.0,0.00014767,2]
[353898468,1740118254207,-577.33,0.00014767,2]
[353898469,1740118254216,-500.0,0.00014767,2]
[353898470,1740118254226,-500.0,0.00014767,2]
[353898471,1740118254235,-500.0,0.00014767,2]
[353898472,1740118254245,-500.0,0.00014767,2]
[353898473,1740118254254,-5115.52,0.00014767,2]
[353898474,1740118254264,-583.16,0.00014767,2]
[353898475,1740118254273,-500.0,0.00014767,2]
[353898476,1740118254283,-1763.15,0.00014767,2]
[353898477,1740118254292,-12832.81,0.00014767,2]
[353898478,1740118254302,-2477.03,0.00014767,2]
[353898479,1740118254311,-571.96,0.00014767,2]
[353898480,1740118254321,-1632.63,0.00014767,2]
[353898481,1740118254331,-970.01,0.00014767,2]
[353898482,1740118254340,-1658.55,0.00014767,2]
[353898483,1740118254350,-500.0,0.00014767,2]
[353898484,1740118254360,-889.73,0.00014767,2]
[353898485,1740118254370,-500.0,0.00014767,2]
[353898486,1740118254379,-500.0,0.00014767,2]
[353898487,1740118254388,-500.0,0.00014767,2]
[353898488,1740118254398,-1532.0,0.00014767,2]
[353898489,1740118254409,-687.09,0.00014767,2]
[353898490,1740118254420,-500.0,0.00014767,2]
[353898491,1740118254429,-780.59,0.00014767,2]
[353898492,1740118254438,-995.37,0.00014767,2]
[353898493,1740118254448,-2332.34,0.00014767,2]
[353898494,1740118254458,-500.0,0.00014767,2]
[353898495,1740118254467,-1414.88,0.00014767,2]
[353898496,1740118254476,-23100.61,0.00014767,2]
[353898497,1740118254486,-4367.26,0.00014767,2]
[353898498,1740118254495,-1658.09,0.00014767,2]
[353898499,1740118254504,-1266.88,0.00014767,2]
[353898500,1740118254513,-10121.5,0.00014767,2]
[353898501,1740118254523,-891.26,0.00014767,2]
[353898502,1740118254532,-2055.72,0.00014767,2]
[353898503,1740118254541,-2802.08,0.00014767,2]
[353898504,1740118254553,-630.32,0.00014767,2]
[353898505,1740118254563,-1334.14,0.00014767,2]
[353898506,1740118254672,-500.0,0.00014767,2]
[353898507,1740118254682,-623.31,0.00014767,2]
[353898508,1740118254691,-760.7,0.00014767,2]
[353898509,1740118254701,-900.55,0.00014767,2]
[353898510,1740118254710,-2021.19,0.00014767,2]
[353898511,1740118254719,-748.09,0.00014767,2]
[353898512,1740118254728,-500.0,0.00014767,2]
[353898513,1740118254737,-500.0,0.00014767,2]
[353898514,1740118254746,-1466.85,0.00014767,2]
[353898515,1740118254755,-500.0,0.00014767,2]
[353898516,1740118254764,-1171.71,0.00014767,2]
[353898517,1740118254773,-500.0,0.00014767,2]
[353898518,1740118254783,-500.0,0.00014767,2]
[353898519,1740118254792,-4391.14,0.00014767,2]
[353898520,1740118254801,-521.58,0.00014767,2]
[353898521,1740118254811,-506.26753492,0.00014767,2]
[353898522,1740118254820,-500.38026704,0.00014773,2]
[353898523,1740118254829,-500.47489498,0.00014773,2]
[353898524,1740118254839,-500.0,0.00014773,2]
[353898525,1740118254850,-500.0,0.00014773,2]
[353898526,1740118254860,-500.89053201,0.00014773,2]
[353898527,1740118254870,-500.0,0.00014773,2]
[353898528,1740118254879,-500.53230309,0.00014773,2]
[353898529,1740118254888,-151.0,0.000148,2]
[353898530,1740118254898,-151.423635,0.000148,2]
[353898531,1740118254907,-170.200498,0.000148,2]
[353898532,1740118254917,-170.200498,0.000148,2]
[353898533,1740118254930,-151.0,0.000148,2]
[353898534,1740118254941,-10128.4757726,0.000148,2]
[353898535,1740118254951,-151.0,0.000148,2]
[353898536,1740118254962,-151.0,0.000148,2]
[353898537,1740118254972,-500.0,0.00014849,2]
[353898538,1740118254986,-500.0,0.00014849,2]
[353898539,1740118254998,-560.81,0.00014849,2]
[353898540,1740118255009,-500.0,0.00014849,2]
[353898541,1740118255019,-500.0,0.00014849,2]
[353898542,1740118255031,-659.11,0.00014849,2]
[353898543,1740118255042,-349.0215852,0.00014849,2]
[353898544,1740118255052,-500.0,0.00014849,2]
[353898545,1740118255063,-500.0,0.00014849,2]
[353898546,1740118255073,-788.64,0.00014849,2]
[353898547,1740118255083,-500.0,0.00014849,2]
[353898548,1740118255092,-500.0,0.00014849,2]
[353898549,1740118255101,-767.86,0.00014849,2]
[353898550,1740118255109,-500.0,0.00014849,2]
[353898551,1740118255119,-577.33,0.00014849,2]
[353898552,1740118255127,-500.0,0.00014849,2]
[353898553,1740118255137,-500.0,0.00014849,2]
[353898554,1740118255148,-500.0,0.00014849,2]
[353898555,1740118255158,-500.0,0.00014849,2]
[353898556,1740118255168,-5115.52,0.00014849,2]
[353898557,1740118255178,-583.16,0.00014849,2]
[353898558,1740118255189,-500.0,0.00014849,2]
[353898559,1740118255200,-1763.15,0.00014849,2]
[353898560,1740118255210,-12832.81,0.00014849,2]
[353898561,1740118255219,-2477.03,0.00014849,2]
[353898562,1740118255229,-571.96,0.00014849,2]
[353898563,1740118255238,-1632.63,0.00014849,2]
[353898564,1740118255248,-970.01,0.00014849,2]
[353898565,1740118255258,-1658.55,0.00014849,2]
[353898566,1740118255267,-500.0,0.00014849,2]
[353898567,1740118255277,-889.73,0.00014849,2]
[353898568,1740118255286,-500.0,0.00014849,2]
[353898569,1740118255295,-500.0,0.00014849,2]
[353898570,1740118255305,-500.0,0.00014849,2]
[353898571,1740118255315,-1532.0,0.00014849,2]
[353898572,1740118255324,-687.09,0.00014849,2]
[353898573,1740118255333,-500.0,0.00014849,2]
[353898574,1740118255342,-780.59,0.00014849,2]
[353898575,1740118255351,-995.37,0.00014849,2]
[353898576,1740118255360,-2332.34,0.00014849,2]
[353898577,1740118255370,-500.0,0.00014849,2]
[353898578,1740118255379,-1414.88,0.00014849,2]
[353898579,1740118255388,-23100.61,0.00014849,2]
[353898580,1740118255397,-4367.26,0.00014849,2]
[353898581,1740118255406,-1658.09,0.00014849,2]
[353898582,1740118255415,-1266.88,0.00014849,2]
[353898583,1740118255424,-10121.5,0.00014849,2]
[353898584,1740118255434,-891.26,0.00014849,2]
[353898585,1740118255443,-2055.72,0.00014849,2]
[353898586,1740118255459,-2802.08,0.00014849,2]
[353898587,1740118255469,-630.32,0.00014849,2]
[353898588,1740118255478,-1334.14,0.00014849,2]
[353898589,1740118255487,-636.34537082,0.00014849,2]
[353898590,1740118255497,-623.31,0.00014849,2]
[353898591,1740118255506,-760.7,0.00014849,2]
[353898592,1740118255516,-900.55,0.00014849,2]
[353898593,1740118255525,-2021.19,0.00014849,2]
[353898594,1740118255534,-748.09,0.00014849,2]
[353898595,1740118255543,-500.0,0.00014849,2]
[353898596,1740118255555,-500.0,0.00014849,2]
[353898597,1740118255564,-1466.85,0.00014849,2]
[353898598,1740118255573,-507.4301472,0.00014849,2]
[353898599,1740118255582,-1171.71,0.00014849,2]
[353898600,1740118255591,-500.0,0.00014849,2]
[353898601,1740118255601,-500.0,0.00014849,2]
[353898602,1740118255610,-4391.14,0.00014849,2]
[353898603,1740118255619,-521.58,0.00014849,2]
[353898604,1740118255628,-500.0,0.00014873,2]
[353898605,1740118255637,-152.0622986,0.00014873,2]
[353898606,1740118255647,-500.49924397,0.00014873,2]
[353898607,1740118255656,-330.79250448,0.00014873,2]
[353898608,1740118255665,-500.0,0.00014873,2]
[353898609,1740118255674,-3507.92,0.000149,2]
[353898610,1740118255683,-151.0,0.000149,2]
[353898611,1740118255692,-151.0,0.000149,2]
[353898612,1740118255701,-170.200498,0.000149,2]
[353898613,1740118255711,-170.200498,0.000149,2]
[353898614,1740118255720,-151.0,0.000149,2]
[353898615,1740118255729,-120368.81571183,0.000149,2]
[353898616,1740118256033,-375.481998,0.00014273,2]
[353898617,1740118373293,259.352739,9.041e-05,2]
[353898628,1740119311429,1079.29552904,0.00018005,90]
[353898634,1740119376397,246.385102,9.041e-05,2]
[353898697,1740119431921,-298.20582391,0.00013597,2]
[353898700,1740119431933,-3934.64026876,0.00013597,2]
[353898702,1740119431942,-600.0,0.00013664,2]
[353898704,1740119431951,-300.0,0.00013697,2]
[353898706,1740119431961,-503.40470046,0.00013698,2]
[353898708,1740119431970,-506.0157064,0.00013698,2]
[353898710,1740119431979,-500.0,0.00013698,2]
[353898712,1740119431988,-500.0,0.00013698,2]
[353898714,1740119431998,-504.53788359,0.00013698,2]
[353898716,1740119432007,-175.65887672,0.00013698,2]
[353898718,1740119432019,-231.8003699,0.00013698,2]
[353898720,1740119432028,-506.42438765,0.00013698,2]
[353898722,1740119432038,-500.0,0.00013698,2]
[353898724,1740119432047,-320.64168618,0.00013698,2]
[353899290,1740119437738,-163.51248244,0.00013598,2]
[353899291,1740119437748,-183.26128324,0.00013698,2]
[353899292,1740119437757,-502.7376633,0.00013698,2]
[353899293,1740119437766,-503.33856379,0.00013698,2]
[353899294,1740119437776,-505.22297044,0.00013698,2]
[353899295,1740119437785,-160.9008652,0.00013698,2]
[353899296,1740119437794,-506.21986706,0.00013698,2]
[353899297,1740119437804,-500.0,0.00013698,2]
[353899299,1740119437814,-503.20230427,0.00013698,2]
[353899301,1740119437824,-594.55175346,0.00013698,2]
[353899302,1740119437833,-500.0,0.00013698,2]
[353899304,1740119437842,-502.90334253,0.00013698,2]
[353899306,1740119437851,-822.8,0.00013698,2]
[353899307,1740119437860,-500.0,0.00013698,2]
[353899309,1740119437869,-500.0,0.00013698,2]
[353899311,1740119437878,-500.0,0.00013698,2]
[353899313,1740119437887,-500.0,0.00013698,2]
[353899314,1740119437896,-500.0,0.00013698,2]
[353899316,1740119437905,-500.0,0.00013698,2]
[353899317,1740119437914,-507.36596821,0.00013698,2]
[353899318,1740119437923,-504.41181488,0.00013698,2]
[353899319,1740119437933,-500.0,0.00013698,2]
[353899320,1740119437943,-500.0,0.00013698,2]
[353899321,1740119437952,-503.14349351,0.00013698,2]
[353899322,1740119437961,-331.59756976,0.00013698,2]
[353899323,1740119437971,-500.0,0.00013698,2]
[353899324,1740119437980,-500.0,0.00013698,2]
[353899325,1740119437989,-502.32061473,0.00013698,2]
[353899326,1740119437998,-359.65015428,0.00013698,2]
[353899327,1740119438007,-357.35541447,0.00013698,2]
[353899328,1740119438017,-580.2,0.00013698,2]
[353899329,1740119438026,-500.0,0.00013698,2]
[353899330,1740119438035,-500.0,0.00013698,2]
[353899331,1740119438045,-500.0,0.00013698,2]
[353899332,1740119438054,-609.59,0.00013698,2]
[353899333,1740119438063,-500.0,0.00013698,2]
[353899334,1740119438073,-500.0,0.00013698,2]
[353899335,1740119438082,-500.0,0.00013698,2]
[353899336,1740119438091,-501.88445061,0.00013698,2]
[353899337,1740119438100,-500.0,0.00013698,2]
[353899338,1740119438109,-632.84201841,0.00013698,2]
[353899339,1740119438118,-509.99386251,0.00013698,2]
[353899340,1740119438127,-500.0,0.00013698,2]
[353899341,1740119438137,-504.06012441,0.00013698,2]
[353899342,1740119438146,-500.0,0.00013698,2]
[353899343,1740119438155,-500.0,0.00013698,2]
[353899344,1740119438164,-632.29,0.00013698,2]
[353899345,1740119438173,-500.0,0.00013698,2]
[353899346,1740119438182,-500.0,0.00013698,2]
[353899347,1740119438191,-500.0,0.00013698,2]
[353899348,1740119438200,-500.0,0.00013698,2]
[353899349,1740119438210,-561.41,0.00013698,2]
[353899350,1740119438219,-503.36764653,0.00013698,2]
[353899351,1740119438228,-500.0,0.00013698,2]
[353899352,1740119438237,-500.0,0.00013698,2]
[353899353,1740119438247,-502.39382738,0.00013698,2]
[353899354,1740119438256,-501.8892511,0.00013698,2]
[353899355,1740119438265,-500.0,0.00013698,2]
[353899356,1740119438275,-500.0,0.00013698,2]
[353899357,1740119438284,-747.26,0.00013698,2]
[353899358,1740119438293,-501.58885552,0.00013698,2]
[353899359,1740119438302,-500.0,0.00013698,2]
[353899360,1740119438311,-500.0,0.00013698,2]
[353899361,1740119438320,-500.0,0.00013698,2]
[353899362,1740119438330,-567.67,0.00013698,2]
[353899363,1740119438339,-503.77889916,0.00013698,2]
[353899364,1740119438348,-500.0,0.00013698,2]
[353899365,1740119438357,-502.73680723,0.00013698,2]
[353899366,1740119438366,-510.61376861,0.00013698,2]
[353899367,1740119438376,-507.70170855,0.00013698,2]
[353899368,1740119438385,-500.0,0.00013698,2]
[353899369,1740119438395,-509.64,0.00013698,2]
[353899370,1740119438404,-502.90659524,0.00013698,2]
[353899371,1740119438417,-549.9,0.00013698,2]
[353899372,1740119438426,-503.78933649,0.00013698,2]
[353899373,1740119438436,-502.63944035,0.00013698,2]
[353899374,1740119438445,-502.85106677,0.00013698,2]
[353899375,1740119438454,-501.84016908,0.00013698,2]
[353899376,1740119438463,-500.0,0.00013698,2]
[353899377,1740119438473,-501.86272266,0.00013698,2]
[353899378,1740119438482,-460.16596127,0.00013698,2]
[353899379,1740119438492,-502.72281117,0.00013698,2]
[353899380,1740119438501,-507.6817314,0.00013698,2]
[353899381,1740119438511,-243.70395146,0.00013698,2]
[353899382,1740119438520,-500.0,0.00013698,2]
[353899383,1740119438529,-500.0,0.00013698,2]
[353899384,1740119438537,-500.0,0.00013698,2]
[353899385,1740119438546,-500.0,0.00013698,2]
[353899386,1740119438555,-500.0,0.00013698,2]
[353899387,1740119438565,-503.75206297,0.00013698,2]
[353899389,1740119438574,-500.57464181,0.00013698,2]
[353899391,1740119438582,-503.3761147,0.00013698,2]
[353899393,1740119438591,-500.0,0.00013698,2]
[353899395,1740119438601,-500.0,0.00013698,2]
[353899397,1740119438610,-500.0,0.00013698,2]
[353899399,1740119438619,-507.28961544,0.00013698,2]
[353899401,1740119438628,-500.0,0.00013698,2]
[353899402,1740119438637,-500.82764785,0.00013698,2]
[353899403,1740119438646,-501.39590547,0.00013698,2]
[353899404,1740119438655,-503.0342177,0.00013698,2]
[353899405,1740119438664,-501.35862701,0.00013698,2]
[353899406,1740119438673,-500.0,0.00013698,2]
[353899408,1740119438682,-501.14785678,0.00013698,2]
[353899410,1740119438691,-502.9482959,0.00013698,2]
[353899411,1740119438700,-504.26999674,0.00013698,2]
[353899412,1740119438710,-503.79483513,0.00013698,2]
[353899413,1740119438719,-500.0,0.00013698,2]
[353899414,1740119438728,-504.33456902,0.00013698,2]
[353899415,1740119438738,-500.0,0.00013698,2]
[353899416,1740119438747,-503.48667751,0.00013698,2]
[353899417,1740119438757,-501.04490349,0.00013698,2]
[353899418,1740119438766,-500.0,0.00013698,2]
[353899419,1740119438776,-500.0,0.00013698,2]
[353899420,1740119438785,-500.0,0.00013698,2]
[353899421,1740119438795,-503.27147258,0.00013698,2]
[353899422,1740119438804,-500.0,0.00013698,2]
[353899423,1740119438813,-502.82692331,0.00013698,2]
[353899424,1740119438823,-504.15173115,0.00013698,2]
[353899425,1740119438832,-500.0,0.00013698,2]
[353899426,1740119438842,-1000.0,0.00013698,2]
[353899427,1740119438963,-504.57936516,0.00013698,2]
[353899428,1740119438973,-500.0,0.00013698,2]
[353899429,1740119438982,-200.83597871,0.00013698,2]
[353899430,1740119438992,-1332.43,0.00013698,2]
[353899431,1740119439001,-500.0,0.00013698,2]
[353899432,1740119439011,-500.70417088,0.00013698,2]
[353899433,1740119439020,-500.0,0.00013698,2]
[353899434,1740119439029,-500.0,0.00013698,2]
[353899435,1740119439039,-503.05291425,0.00013698,2]
[353899436,1740119439048,-502.09581191,0.00013698,2]
[353899437,1740119439057,-529.41488369,0.00013698,2]
[353899438,1740119439066,-381.46592178,0.00013698,2]
[353899439,1740119439077,-500.0,0.00013698,2]
[353899440,1740119439086,-500.0,0.00013698,2]
[353899441,1740119439095,-500.0,0.00013698,2]
[353899442,1740119439104,-505.99159759,0.00013698,2]
[353899443,1740119439113,-1632.63,0.00013698,2]
[353899444,1740119439123,-500.0,0.00013698,2]
[353899445,1740119439132,-12895.71,0.00013698,2]
[353899446,1740119439142,-383.59816831,0.00013698,2]
[353899447,1740119439151,-501.51922611,0.00013698,2]
[353899448,1740119439160,-1825.65,0.00013698,2]
[353899449,1740119439171,-5094.69,0.00013698,2]
[353899450,1740119439180,-570.24341615,0.00013698,2]
[353899451,1740119439190,-1658.55,0.00013698,2]
[353899452,1740119439200,-500.0,0.00013698,2]
[353899453,1740119439209,-970.01,0.00013698,2]
[353899454,1740119439219,-502.4037985,0.00013698,2]
[353899455,1740119439230,-500.0,0.00013698,2]
[353899456,1740119439240,-716.97,0.00013698,2]
[353899457,1740119439249,-500.0,0.00013698,2]
[353899458,1740119439259,-889.73,0.00013698,2]
[353899459,1740119439268,-2539.53,0.00013698,2]
[353899460,1740119439278,-503.19264668,0.00013698,2]
[353899461,1740119439288,-571.96,0.00013698,2]
[353899462,1740119439297,-500.0,0.00013698,2]
[353899463,1740119439307,-500.0,0.00013698,2]
[353899464,1740119439316,-500.0,0.00013698,2]
[353899465,1740119439326,-500.0,0.00013698,2]
[353899466,1740119439335,-500.0,0.00013698,2]
[353899467,1740119439344,-23184.99,0.00013698,2]
[353899468,1740119439354,-504.99505626,0.00013698,2]
[353899469,1740119439363,-1532.0,0.00013698,2]
[353899470,1740119439372,-500.0,0.00013698,2]
[353899471,1740119439382,-501.28897225,0.00013698,2]
[353899472,1740119439391,-500.0,0.00013698,2]
[353899473,1740119439401,-1300.19,0.00013698,2]
[353899474,1740119439412,-500.0,0.00013698,2]
[353899475,1740119439423,-1032.31,0.00013698,2]
[353899476,1740119439432,-502.11399747,0.00013698,2]
[353899477,1740119439441,-500.0,0.00013698,2]
[353899478,1740119439451,-501.64666334,0.00013698,2]
[353899479,1740119439461,-624.51204362,0.00013698,2]
[353899480,1740119439470,-500.0,0.00013698,2]
[353899481,1740119439479,-517.04,0.00013698,2]
[353899483,1740119439490,-503.75191257,0.00013698,2]
[353899484,1740119439500,-2344.36,0.00013698,2]
[353899485,1740119439510,-891.26,0.00013698,2]
[353899486,1740119439519,-500.0,0.00013698,2]
[353899487,1740119439528,-500.84455635,0.00013698,2]
[353899488,1740119439537,-504.13573299,0.00013698,2]
[353899489,1740119439548,-4367.26,0.00013698,2]
[353899490,1740119439557,-500.0,0.00013698,2]
[353899491,1740119439567,-503.37933928,0.00013698,2]
[353899492,1740119439576,-501.85779859,0.00013698,2]
[353899493,1740119439586,-508.4735218,0.00013698,2]
[353899494,1740119439595,-504.47075202,0.00013698,2]
[353899495,1740119439605,-822.25,0.00013698,2]
[353899496,1740119439614,-502.9436641,0.00013698,2]
[353899497,1740119439624,-500.0,0.00013698,2]
[353899498,1740119439633,-288.49302939,0.00013698,2]
[353899500,1740119439642,-10184.0,0.00013698,2]
[353899502,1740119439651,-502.17409511,0.00013698,2]
[353899503,1740119439661,-692.82,0.00013698,2]
[353899504,1740119439670,-577.34634332,0.00013698,2]
[353899505,1740119439679,-1434.95,0.00013698,2]
[353899506,1740119439688,-508.08678673,0.00013698,2]
[353899507,1740119439698,-601.26219964,0.00013698,2]
[353899508,1740119439707,-404.55036093,0.00013698,2]
[353899509,1740119439715,-503.09369045,0.00013698,2]
[353899511,1740119439725,-2392.96,0.00013698,2]
[353899513,1740119439734,-2864.58,0.00013698,2]
[353899515,1740119439744,-505.68326048,0.00013698,2]
[353899517,1740119439754,-518.52352108,0.00013698,2]
[353899518,1740119439763,-1738.41,0.00013698,2]
[353899520,1740119439772,-513.46125984,0.00013698,2]
[353899522,1740119439782,-760.7,0.00013698,2]
[353899524,1740119439791,-501.64484581,0.00013698,2]
[353899525,1740119439800,-1375.81,0.00013698,2]
[353899526,1740119439809,-510.05816572,0.00013698,2]
[353899528,1740119439818,-685.81,0.00013698,2]
[353899530,1740119439827,-500.0,0.00013698,2]
[353899531,1740119439836,-500.0,0.00013698,2]
[353899533,1740119439846,-500.0,0.00013698,2]
[353899534,1740119439855,-500.0,0.00013698,2]
[353899535,1740119439864,-500.0,0.00013698,2]
[353899536,1740119439873,-500.0,0.00013698,2]
[353899537,1740119439882,-500.0,0.00013698,2]
[353899538,1740119439891,-500.0,0.00013698,2]